[Event "NJSK 2026 Jeugd C"]
[Site "Helmond, Netherlands"]
[Date "2026.04.29"]
[Round "6.1"]
[White "Guillaumond, Matthieu"]
[Black "Lenting, Roan"]
[Result "1-0"]
[TimeControl "90min/40moves + 30sec/move"]
[WhiteTitle "-"]
[BlackTitle "-"]
[WhiteFideId "1097091"]
[BlackFideId "1085905"]
[WhiteElo "2104"]
[BlackElo "1986"]

1. e4 {[%clk 01:30:59]} c5 {[%clk 01:30:56]} {[%emt 00:00:04]} 2. Nf3 {[%clk
01:31:25]} {[%emt 00:00:04]} e6 {[%clk 01:31:21]} {[%emt 00:00:05]} 3. c3
{[%clk 01:31:51]} {[%emt 00:00:05]} Nf6 {[%clk 01:31:46]} {[%emt 00:00:04]} 4.
e5 {[%clk 01:32:16]} {[%emt 00:00:05]} Nd5 {[%clk 01:32:12]} {[%emt 00:00:04]}
5. d4 {[%clk 01:32:37]} {[%emt 00:00:10]} cxd4 {[%clk 01:32:37]} {[%emt
00:00:05]} 6. cxd4 {[%clk 01:33:03]} {[%emt 00:00:04]} d6 {[%clk 01:33:02]}
{[%emt 00:00:04]} 7. Bc4 {[%clk 01:33:24]} {[%emt 00:00:09]} Nc6 {[%clk
01:33:27]} {[%emt 00:00:06]} 8. Qe2 {[%clk 01:32:37]} {[%emt 00:01:17]} Be7
{[%clk 01:29:28]} {[%emt 00:04:28]} 9. O-O {[%clk 01:32:46]} {[%emt 00:00:22]}
O-O {[%clk 01:29:40]} {[%emt 00:00:18]} 10. Nc3 {[%clk 01:33:13]} {[%emt
00:00:03]} Nxc3 {[%clk 01:28:53]} {[%emt 00:01:16]} 11. bxc3 {[%clk 01:33:42]}
{[%emt 00:00:01]} dxe5 {[%clk 01:28:37]} {[%emt 00:00:47]} 12. dxe5 {[%clk
01:34:06]} {[%emt 00:00:06]} Qc7 {[%clk 01:27:24]} {[%emt 00:01:42]} 13. Re1
{[%clk 01:34:18]} {[%emt 00:00:17]} b6 {[%clk 01:25:06]} {[%emt 00:02:48]} 14.
Bd3 {[%clk 01:33:21]} {[%emt 00:01:27]} Bb7 {[%clk 01:22:54]} {[%emt 00:02:42]}
15. Ng5 {[%clk 01:23:29]} {[%emt 00:10:22]} Bxg5 {[%clk 01:20:20]} {[%emt
00:03:04]} 16. Bxg5 {[%clk 01:00:36]} {[%emt 00:23:24]} Nxe5 {[%clk 00:46:35]}
{[%emt 00:34:15]} 17. Qxe5 {[%clk 00:53:33]} {[%emt 00:07:33]} Qxe5 {[%clk
00:46:22]} {[%emt 00:00:42]} 18. Rxe5 {[%clk 00:54:01]} {[%emt 00:00:02]} f6
{[%clk 00:46:44]} {[%emt 00:00:08]} 19. Rxe6 {[%clk 00:52:36]} {[%emt
00:01:56]} fxg5 {[%clk 00:47:09]} {[%emt 00:00:05]} 20. Bc4 {[%clk 00:53:00]}
{[%emt 00:00:06]} Kh8 {[%clk 00:46:44]} {[%emt 00:00:54]} 21. Re7 {[%clk
00:53:23]} {[%emt 00:00:07]} Bc6 {[%clk 00:45:00]} {[%emt 00:02:14]} 22. Rae1
{[%clk 00:47:08]} {[%emt 00:06:45]} Rfe8 {[%clk 00:38:56]} {[%emt 00:06:34]} 23.
f3 {[%clk 00:41:34]} {[%emt 00:06:05]} a5 {[%clk 00:35:02]} {[%emt 00:04:23]}
24. Kf2 {[%clk 00:34:26]} {[%emt 00:07:38]} b5 {[%clk 00:30:06]} {[%emt
00:05:27]} 25. Rxe8+ {[%clk 00:31:36]} {[%emt 00:03:20]} Bxe8 {[%clk 00:30:02]}
{[%emt 00:00:33]} 26. Bf1 {[%clk 00:19:02]} {[%emt 00:13:04]} h6 {[%clk
00:25:22]} {[%emt 00:05:10]} 27. Re5 {[%clk 00:16:14]} {[%emt 00:03:19]} b4
{[%clk 00:20:54]} {[%emt 00:04:58]} 28. cxb4 {[%clk 00:15:54]} {[%emt
00:00:50]} axb4 {[%clk 00:21:17]} {[%emt 00:00:06]} 29. Bc4 {[%clk 00:16:21]}
{[%emt 00:00:03]} Bg6 {[%clk 00:16:07]} {[%emt 00:05:40]} 30. Re2 {[%clk
00:10:33]} {[%emt 00:06:19]} Rc8 {[%clk 00:15:11]} {[%emt 00:01:26]} 31. Bb3
{[%clk 00:10:44]} {[%emt 00:00:19]} Kh7 {[%clk 00:14:15]} {[%emt 00:01:25]} 32.
Rd2 {[%clk 00:10:58]} {[%emt 00:00:16]} h5 {[%clk 00:12:24]} {[%emt 00:02:21]}
33. Rd5 {[%clk 00:09:44]} {[%emt 00:01:44]} Kh6 {[%clk 00:11:23]} {[%emt
00:01:31]} 34. Rb5 {[%clk 00:08:57]} {[%emt 00:01:18]} Bc2 {[%clk 00:10:39]}
{[%emt 00:01:14]} 35. Rb6+ {[%clk 00:05:01]} {[%emt 00:04:25]} g6 {[%clk
00:10:39]} {[%emt 00:00:31]} 36. Rxb4 {[%clk 00:05:07]} {[%emt 00:00:24]} Bxb3
{[%clk 00:11:03]} {[%emt 00:00:06]} 37. axb3 {[%clk 00:05:36]} {[%emt
00:00:01]} h4 {[%clk 00:10:46]} {[%emt 00:00:46]} 38. Rc4 {[%clk 00:04:32]}
{[%emt 00:01:34]} Ra8 {[%clk 00:10:39]} {[%emt 00:00:38]} 39. Rc2 {[%clk
00:04:31]} {[%emt 00:00:31]} Kg7 {[%clk 00:09:08]} {[%emt 00:02:00]} 40. h3
{[%clk 00:04:13]} {[%emt 00:00:48]} Kf6 {[%clk 00:09:29]} {[%emt 00:00:09]} 41.
b4 {[%clk 00:03:38]} {[%emt 00:01:06]} Rb8 {[%clk 00:09:05]} {[%emt 00:00:54]}
42. Rb2 {[%clk 00:04:06]} {[%emt 00:00:02]} Rb5 {[%clk 00:09:19]} {[%emt
00:00:16]} 43. Ke3 {[%clk 00:03:54]} {[%emt 00:00:42]} Ke5 {[%clk 00:09:40]}
{[%emt 00:00:09]} 44. Kd3 {[%clk 00:03:36]} {[%emt 00:00:44]} Kd5 {[%clk
00:07:47]} {[%emt 00:02:27]} 45. Kc3 {[%clk 00:03:49]} {[%emt 00:00:17]} Kc6
{[%clk 00:07:41]} {[%emt 00:00:36]} 46. Re2 {[%clk 00:02:09]} {[%emt 00:02:10]}
Kd6 {[%clk 00:07:50]} {[%emt 00:00:22]} 47. Ra2 {[%clk 00:01:47]} {[%emt
00:00:51]} Rb6 {[%clk 00:07:50]} {[%emt 00:00:30]} 48. Ra5 {[%clk 00:01:39]}
{[%emt 00:00:38]} Rc6+ {[%clk 00:07:50]} {[%emt 00:00:30]} 49. Kb3 {[%clk
00:01:53]} {[%emt 00:00:15]} Rc1 {[%clk 00:07:49]} {[%emt 00:00:32]} 50. Rxg5
{[%clk 00:02:15]} {[%emt 00:00:08]} Rb1+ {[%clk 00:07:42]} {[%emt 00:00:37]} 51.
Kc4 {[%clk 00:02:42]} {[%emt 00:00:02]} Ke6 {[%clk 00:07:15]} {[%emt 00:00:58]}
52. Rxg6+ {[%clk 00:02:55]} {[%emt 00:00:17]} Kf5 {[%clk 00:07:40]} {[%emt
00:00:04]} 53. Rg4 {[%clk 00:03:12]} {[%emt 00:00:13]} 1-0

[Event "NJSK 2026 Jeugd C"]
[Site "Helmond, Netherlands"]
[Date "2026.04.29"]
[Round "6.2"]
[White "Blok, Lukas"]
[Black "Teianu, Sabin"]
[Result "0-1"]
[TimeControl "90min/40moves + 30sec/move"]
[WhiteTitle "-"]
[BlackTitle "-"]
[WhiteFideId "40110494"]
[BlackFideId "1095846"]
[WhiteElo "1991"]
[BlackElo "2131"]

1. c4 {[%clk 01:30:50]} {[%emt 00:00:10]} c6 {[%clk 01:30:55]} {[%emt
00:00:06]} 2. e4 {[%clk 01:30:57]} {[%emt 00:00:22]} d5 {[%clk 01:31:20]}
{[%emt 00:00:05]} 3. cxd5 {[%clk 01:31:23]} {[%emt 00:00:04]} cxd5 {[%clk
01:31:43]} {[%emt 00:00:08]} 4. exd5 {[%clk 01:31:51]} {[%emt 00:00:02]} Nf6
{[%clk 01:32:01]} {[%emt 00:00:11]} 5. Nc3 {[%clk 01:32:15]} {[%emt 00:00:06]}
Nxd5 {[%clk 01:32:26]} {[%emt 00:00:05]} 6. Bc4 {[%clk 01:32:41]} {[%emt
00:00:05]} Nb6 {[%clk 01:28:02]} {[%emt 00:04:54]} 7. Bb3 {[%clk 01:32:18]}
{[%emt 00:00:52]} g6 {[%clk 01:24:38]} {[%emt 00:03:53]} 8. Qf3 {[%clk
01:27:37]} {[%emt 00:05:12]} e6 {[%clk 01:23:14]} {[%emt 00:01:54]} 9. Nge2
{[%clk 01:25:45]} {[%emt 00:02:22]} Bg7 {[%clk 01:20:16]} {[%emt 00:03:27]} 10.
d4 {[%clk 01:18:35]} {[%emt 00:07:40]} O-O {[%clk 01:12:32]} {[%emt 00:08:14]}
11. Be3 {[%clk 01:13:36]} {[%emt 00:05:29]} Bd7 {[%clk 01:06:55]} {[%emt
00:06:08]} 12. h4 {[%clk 00:57:46]} {[%emt 00:16:20]} Bc6 {[%clk 00:48:53]}
{[%emt 00:18:31]} 13. Qh3 {[%clk 00:52:49]} {[%emt 00:05:27]} h5 {[%clk
00:44:35]} {[%emt 00:04:48]} 14. Rd1 {[%clk 00:46:33]} {[%emt 00:06:46]} a5
{[%clk 00:32:37]} {[%emt 00:12:29]} 15. a3 {[%clk 00:31:19]} {[%emt 00:15:44]}
a4 {[%clk 00:26:01]} {[%emt 00:07:06]} 16. Ba2 {[%clk 00:31:30]} {[%emt
00:00:18]} Nd5 {[%clk 00:25:14]} {[%emt 00:01:17]} 17. O-O {[%clk 00:25:14]}
{[%emt 00:06:46]} Na6 {[%clk 00:15:46]} {[%emt 00:09:59]} 18. Rc1 {[%clk
00:15:25]} {[%emt 00:10:18]} Nac7 {[%clk 00:12:59]} {[%emt 00:03:17]} 19. Bg5
{[%clk 00:14:25]} {[%emt 00:01:30]} Qd7 {[%clk 00:02:33]} {[%emt 00:10:56]} 20.
Rfd1 {[%clk 00:14:41]} {[%emt 00:00:15]} Rfc8 {[%clk 00:01:18]} {[%emt
00:01:45]} 21. Ne4 {[%clk 00:10:51]} {[%emt 00:04:20]} b6 {[%clk 00:00:37]}
{[%emt 00:01:11]} 22. Qg3 {[%clk 00:08:19]} {[%emt 00:03:02]} Ne8 {[%clk
00:00:39]} {[%emt 00:00:28]} 23. Nd2 {[%clk 00:06:54]} {[%emt 00:01:55]} Nd6
{[%clk 00:00:39]} {[%emt 00:00:29]} 24. Nc4 {[%clk 00:05:23]} {[%emt 00:02:01]}
Nxc4 {[%clk 00:00:38]} {[%emt 00:00:33]} 25. Bxc4 {[%clk 00:05:49]} {[%emt
00:00:04]} b5 {[%clk 00:00:43]} {[%emt 00:00:25]} 26. Ba2 {[%clk 00:05:55]}
{[%emt 00:00:23]} Bb7 {[%clk 00:00:33]} {[%emt 00:00:40]} 27. Qd3 {[%clk
00:04:38]} {[%emt 00:01:48]} Rxc1 {[%clk 00:00:38]} {[%emt 00:00:25]} 28. Rxc1
{[%clk 00:05:04]} {[%emt 00:00:04]} b4 {[%clk 00:00:33]} {[%emt 00:00:35]} 29.
Bxd5 {[%clk 00:04:46]} {[%emt 00:00:47]} Qxd5 {[%clk 00:00:48]} {[%emt
00:00:15]} 30. f3 {[%clk 00:03:53]} {[%emt 00:01:23]} Ba6 {[%clk 00:00:53]}
{[%emt 00:00:26]} 31. Qd2 {[%clk 00:02:47]} {[%emt 00:01:36]} Bxe2 {[%clk
00:01:04]} {[%emt 00:00:17]} 32. Qxe2 {[%clk 00:03:04]} {[%emt 00:00:14]} Qxd4+
{[%clk 00:01:22]} {[%emt 00:00:12]} 33. Kh1 {[%clk 00:03:13]} {[%emt 00:00:22]}
Qxb2 {[%clk 00:01:13]} {[%emt 00:00:39]} 34. Qe4 {[%clk 00:03:39]} {[%emt
00:00:03]} Rb8 {[%clk 00:00:46]} {[%emt 00:00:57]} 35. axb4 {[%clk 00:03:59]}
{[%emt 00:00:11]} a3 {[%clk 00:00:40]} {[%emt 00:00:36]} 36. Rb1 {[%clk
00:04:11]} {[%emt 00:00:17]} a2 {[%clk 00:00:45]} {[%emt 00:00:26]} 37. Rxb2
{[%clk 00:04:28]} {[%emt 00:00:12]} Bxb2 {[%clk 00:01:09]} {[%emt 00:00:06]} 38.
Kh2 {[%clk 00:04:22]} {[%emt 00:00:36]} a1=Q {[%clk 00:01:31]} {[%emt
00:00:08]} 39. Bf4 {[%clk 00:04:44]} {[%emt 00:00:08]} Rd8 {[%clk 00:01:32]}
{[%emt 00:00:29]} 40. b5 {[%clk 00:05:00]} {[%emt 00:00:14]} Rd4 {[%clk
00:01:32]} {[%emt 00:00:29]} 0-1

[Event "NJSK 2026 Jeugd C"]
[Site "Helmond, Netherlands"]
[Date "2026.04.29"]
[Round "6.3"]
[White "Leenen, Boyd"]
[Black "Pathak, Raghav"]
[Result "0-1"]
[TimeControl "90min/40moves + 30sec/move"]
[WhiteTitle "-"]
[BlackTitle "-"]
[WhiteFideId "1083937"]
[BlackFideId "1084259"]
[WhiteElo "2205"]
[BlackElo "2091"]

1. d4 {[%clk 01:30:57]} {[%emt 00:00:02]} Nf6 {[%clk 01:30:03]} {[%emt
00:00:57]} 2. c4 {[%clk 01:30:59]} {[%emt 00:00:29]} g6 {[%clk 01:30:26]}
{[%emt 00:00:07]} 3. Nc3 {[%clk 01:31:24]} {[%emt 00:00:05]} Bg7 {[%clk
01:30:53]} {[%emt 00:00:03]} 4. e4 {[%clk 01:31:49]} {[%emt 00:00:05]} d6
{[%clk 01:31:19]} {[%emt 00:00:04]} 5. Nf3 {[%clk 01:32:16]} {[%emt 00:00:03]}
O-O {[%clk 01:31:45]} {[%emt 00:00:04]} 6. Be2 {[%clk 01:32:42]} {[%emt
00:00:03]} e5 {[%clk 01:32:09]} {[%emt 00:00:06]} 7. O-O {[%clk 01:33:06]}
{[%emt 00:00:06]} Nc6 {[%clk 01:32:37]} {[%emt 00:00:02]} 8. d5 {[%clk
01:33:31]} {[%emt 00:00:05]} Ne7 {[%clk 01:33:04]} {[%emt 00:00:03]} 9. b4
{[%clk 01:33:57]} {[%emt 00:00:04]} Nd7 {[%clk 01:32:50]} {[%emt 00:00:44]} 10.
a4 {[%clk 01:33:42]} {[%emt 00:00:45]} h6 {[%clk 01:31:05]} {[%emt 00:02:15]}
11. Ba3 {[%clk 01:33:15]} {[%emt 00:00:57]} a5 {[%clk 01:28:18]} {[%emt
00:03:17]} 12. bxa5 {[%clk 01:32:29]} {[%emt 00:01:17]} Rxa5 {[%clk 01:28:41]}
{[%emt 00:00:07]} 13. Bb4 {[%clk 01:32:53]} {[%emt 00:00:05]} Ra8 {[%clk
01:29:08]} {[%emt 00:00:04]} 14. Nd2 {[%clk 01:31:57]} {[%emt 00:01:25]} f5
{[%clk 01:23:15]} {[%emt 00:06:23]} 15. Nb3 {[%clk 01:23:23]} {[%emt 00:09:03]}
Nf6 {[%clk 01:15:11]} {[%emt 00:08:36]} 16. c5 {[%clk 01:14:19]} {[%emt
00:09:34]} Nxe4 {[%clk 01:11:33]} {[%emt 00:04:08]} 17. Nxe4 {[%clk 01:14:36]}
{[%emt 00:00:12]} fxe4 {[%clk 01:11:58]} {[%emt 00:00:06]} 18. cxd6 {[%clk
01:14:53]} {[%emt 00:00:11]} cxd6 {[%clk 01:12:21]} {[%emt 00:00:08]} 19. Nd2
{[%clk 01:12:47]} {[%emt 00:02:35]} Nf5 {[%clk 00:46:10]} {[%emt 00:26:42]} 20.
Nxe4 {[%clk 01:11:21]} {[%emt 00:01:56]} h5 {[%clk 00:42:26]} {[%emt 00:04:14]}
21. Bd3 {[%clk 01:03:11]} {[%emt 00:08:40]} Kh8 {[%clk 00:34:43]} {[%emt
00:08:13]} 22. Qc1 {[%clk 01:02:00]} {[%emt 00:01:41]} Kh7 {[%clk 00:20:07]}
{[%emt 00:15:05]} 23. Qa3 {[%clk 01:00:18]} {[%emt 00:02:12]} Rf7 {[%clk
00:15:40]} {[%emt 00:04:58]} 24. a5 {[%clk 00:42:16]} {[%emt 00:18:31]} Bf8
{[%clk 00:13:45]} {[%emt 00:02:26]} 25. Rfc1 {[%clk 00:41:15]} {[%emt
00:01:30]} Bh6 {[%clk 00:12:17]} {[%emt 00:01:58]} 26. Rc3 {[%clk 00:40:33]}
{[%emt 00:01:13]} Bf8 {[%clk 00:08:07]} {[%emt 00:04:40]} 27. Rac1 {[%clk
00:39:43]} {[%emt 00:01:19]} Bh6 {[%clk 00:08:17]} {[%emt 00:00:21]} 28. Rd1
{[%clk 00:39:01]} {[%emt 00:01:11]} Bf8 {[%clk 00:08:29]} {[%emt 00:00:18]} 29.
Rdc1 {[%clk 00:32:00]} {[%emt 00:07:31]} Bh6 {[%clk 00:08:53]} {[%emt
00:00:07]} 30. R1c2 {[%clk 00:32:25]} {[%emt 00:00:06]} Nd4 {[%clk 00:06:15]}
{[%emt 00:03:07]} 31. Ra2 {[%clk 00:29:31]} {[%emt 00:03:24]} Qh4 {[%clk
00:06:06]} {[%emt 00:00:38]} 32. Bxd6 {[%clk 00:26:46]} {[%emt 00:03:15]} Nb5
{[%clk 00:02:07]} {[%emt 00:04:30]} 33. Bxb5 {[%clk 00:25:57]} {[%emt
00:01:19]} Qxe4 {[%clk 00:02:32]} {[%emt 00:00:04]} 34. Ra1 {[%clk 00:24:59]}
{[%emt 00:01:28]} Bf5 {[%clk 00:00:48]} {[%emt 00:02:15]} 35. Bd3 {[%clk
00:23:18]} {[%emt 00:02:11]} Qd4 {[%clk 00:00:38]} {[%emt 00:00:40]} 36. Bc5
{[%clk 00:22:51]} {[%emt 00:00:58]} Qh4 {[%clk 00:00:56]} {[%emt 00:00:11]} 37.
Bxf5 {[%clk 00:22:17]} {[%emt 00:01:04]} Rxf5 {[%clk 00:01:16]} {[%emt
00:00:10]} 38. Rd1 {[%clk 00:20:57]} {[%emt 00:01:49]} Bf8 {[%clk 00:00:59]}
{[%emt 00:00:47]} 39. Rg3 {[%clk 00:17:54]} {[%emt 00:03:32]} Bxc5 {[%clk
00:00:45]} {[%emt 00:00:45]} 40. Qxc5 {[%clk 00:18:24]} {[%emt 00:00:01]} Raf8
{[%clk 00:01:10]} {[%emt 00:00:05]} 41. Qb6 {[%clk 00:17:54]} {[%emt 00:00:59]}
R5f6 {[%clk 00:01:08]} {[%emt 00:00:33]} 42. Qxb7+ {[%clk 00:18:23]} R8f7
{[%clk 00:01:36]} {[%emt 00:00:02]} 43. Qb1 {[%clk 00:18:52]} {[%emt 00:00:01]}
e4 {[%clk 00:01:44]} {[%emt 00:00:22]} 44. d6 {[%clk 00:16:32]} {[%emt
00:02:50]} Qf4 {[%clk 00:02:04]} {[%emt 00:00:10]} 45. Qc2 {[%clk 00:12:56]}
{[%emt 00:04:06]} Rxd6 {[%clk 00:02:27]} {[%emt 00:00:07]} 46. Rxd6 {[%clk
00:13:02]} {[%emt 00:00:24]} Qxd6 {[%clk 00:02:52]} {[%emt 00:00:05]} 47. h3
{[%clk 00:10:51]} {[%emt 00:02:41]} Qd4 {[%clk 00:00:51]} {[%emt 00:02:30]} 48.
Qa2 {[%clk 00:10:51]} {[%emt 00:00:31]} Kg7 {[%clk 00:00:50]} {[%emt 00:00:31]}
49. a6 {[%clk 00:10:24]} {[%emt 00:00:56]} h4 {[%clk 00:00:34]} {[%emt
00:00:46]} 50. Re3 {[%clk 00:10:20]} {[%emt 00:00:35]} Qd1+ {[%clk 00:01:03]}
{[%emt 00:00:01]} 51. Kh2 {[%clk 00:10:41]} {[%emt 00:00:09]} Qd6+ {[%clk
00:01:22]} {[%emt 00:00:11]} 52. g3 {[%clk 00:09:04]} {[%emt 00:02:06]} hxg3+
{[%clk 00:01:44]} {[%emt 00:00:09]} 53. fxg3 {[%clk 00:09:33]} Qd4 {[%clk
00:01:49]} {[%emt 00:00:25]} 54. Qe2 {[%clk 00:09:36]} {[%emt 00:00:27]} Re7
{[%clk 00:01:32]} {[%emt 00:00:47]} 55. Kg2 {[%clk 00:07:23]} {[%emt 00:02:44]}
Qb6 {[%clk 00:01:24]} {[%emt 00:00:38]} 56. h4 {[%clk 00:06:55]} {[%emt
00:00:58]} Qd4 {[%clk 00:01:08]} {[%emt 00:00:45]} 57. g4 {[%clk 00:05:09]}
{[%emt 00:02:16]} Kh7 {[%clk 00:00:58]} {[%emt 00:00:41]} 58. Kh3 {[%clk
00:03:31]} {[%emt 00:02:08]} Qa1 {[%clk 00:01:09]} {[%emt 00:00:19]} 59. Kg2
{[%clk 00:03:36]} {[%emt 00:00:25]} Qd4 {[%clk 00:01:34]} {[%emt 00:00:04]} 60.
Qe1 {[%clk 00:03:00]} {[%emt 00:01:06]} Qb2+ {[%clk 00:01:49]} {[%emt
00:00:16]} 61. Kh3 {[%clk 00:03:12]} {[%emt 00:00:18]} Rf7 {[%clk 00:01:32]}
{[%emt 00:01:20]} 62. h5 {[%clk 00:01:00]} {[%emt 00:05:29]} g5 {[%clk
00:01:27]} {[%emt 00:00:35]} 63. Qh1 {[%clk 00:01:10]} {[%emt 00:00:19]} Qf2
{[%clk 00:01:42]} {[%emt 00:00:15]} 64. Qxe4+ {[%clk 00:01:37]} {[%emt
00:00:03]} Kh8 {[%clk 00:01:23]} {[%emt 00:00:50]} 65. Qe5+ {[%clk 00:00:54]}
{[%emt 00:01:13]} Kh7 {[%clk 00:01:18]} {[%emt 00:00:36]} 66. Qe4+ {[%clk
00:01:24]} Kh8 {[%clk 00:01:40]} {[%emt 00:00:07]} 67. Qd3 {[%clk 00:01:41]}
{[%emt 00:00:11]} Qh4+ {[%clk 00:02:05]} {[%emt 00:00:07]} 68. Kg2 {[%clk
00:02:04]} {[%emt 00:00:07]} Rf2+ {[%clk 00:02:32]} {[%emt 00:00:03]} 0-1

[Event "NJSK 2026 Jeugd C"]
[Site "Helmond, Netherlands"]
[Date "2026.04.29"]
[Round "6.4"]
[White "Sosef, Noah"]
[Black "Thijssen, Freek"]
[Result "1/2-1/2"]
[TimeControl "90min/40moves + 30sec/move"]
[WhiteTitle "-"]
[BlackTitle "-"]
[WhiteFideId "40107060"]
[BlackFideId "1091840"]
[WhiteElo "2012"]
[BlackElo "2159"]

1. e4 {[%clk 01:30:58]} {[%emt 00:00:02]} c5 {[%clk 01:27:43]} {[%emt
00:03:17]} 2. Nf3 {[%clk 01:31:15]} {[%emt 00:00:13]} Nc6 {[%clk 01:28:08]}
{[%emt 00:00:04]} 3. d4 {[%clk 01:31:39]} {[%emt 00:00:06]} cxd4 {[%clk
01:28:35]} {[%emt 00:00:04]} 4. Nxd4 {[%clk 01:32:05]} {[%emt 00:00:04]} Nf6
{[%clk 01:28:57]} {[%emt 00:00:07]} 5. Nc3 {[%clk 01:32:19]} {[%emt 00:00:17]}
e5 {[%clk 01:28:53]} {[%emt 00:00:33]} 6. Ndb5 {[%clk 01:32:42]} {[%emt
00:00:08]} d6 {[%clk 01:29:17]} {[%emt 00:00:06]} 7. Bg5 {[%clk 01:33:05]}
{[%emt 00:00:07]} a6 {[%clk 01:29:41]} {[%emt 00:00:06]} 8. Na3 {[%clk
01:33:30]} {[%emt 00:00:05]} b5 {[%clk 01:29:51]} {[%emt 00:00:19]} 9. Nd5
{[%clk 01:33:50]} {[%emt 00:00:11]} Be7 {[%clk 01:30:16]} {[%emt 00:00:05]} 10.
Bxf6 {[%clk 01:34:13]} {[%emt 00:00:07]} Bxf6 {[%clk 01:30:39]} {[%emt
00:00:04]} 11. c3 {[%clk 01:34:39]} {[%emt 00:00:07]} Ne7 {[%clk 01:30:37]}
{[%emt 00:00:31]} 12. Nxf6+ {[%clk 01:22:37]} {[%emt 00:12:32]} gxf6 {[%clk
01:30:50]} {[%emt 00:00:18]} 13. Nc2 {[%clk 01:22:55]} {[%emt 00:00:12]} Bb7
{[%clk 01:31:16]} {[%emt 00:00:03]} 14. Bd3 {[%clk 01:22:08]} {[%emt 00:01:17]}
d5 {[%clk 01:31:31]} {[%emt 00:00:15]} 15. Qe2 {[%clk 01:22:19]} {[%emt
00:00:19]} f5 {[%clk 01:31:15]} {[%emt 00:00:45]} 16. f3 {[%clk 01:21:44]}
{[%emt 00:01:06]} fxe4 {[%clk 01:26:15]} {[%emt 00:05:29]} 17. fxe4 {[%clk
01:21:35]} {[%emt 00:00:40]} dxe4 {[%clk 01:25:46]} {[%emt 00:00:58]} 18. Bxe4
{[%clk 01:22:00]} {[%emt 00:00:06]} Bxe4 {[%clk 01:26:14]} {[%emt 00:00:01]} 19.
Qxe4 {[%clk 01:22:23]} {[%emt 00:00:08]} Qd5 {[%clk 01:26:43]} {[%emt
00:00:01]} 20. Qxd5 {[%clk 01:19:53]} {[%emt 00:02:59]} Nxd5 {[%clk 01:27:10]}
{[%emt 00:00:02]} 21. g3 {[%clk 01:18:58]} {[%emt 00:01:27]} f5 {[%clk
01:11:28]} {[%emt 00:16:12]} 22. O-O {[%clk 01:07:23]} {[%emt 00:12:04]} O-O
{[%clk 01:05:23]} {[%emt 00:06:35]} 23. Rad1 {[%clk 00:35:39]} {[%emt
00:32:15]} Rad8 {[%clk 00:37:42]} {[%emt 00:28:11]} 24. Rde1 {[%clk 00:33:33]}
{[%emt 00:02:37]} Rde8 {[%clk 00:34:55]} {[%emt 00:03:16]} 25. Rd1 {[%clk
00:15:41]} {[%emt 00:18:23]} Rd8 {[%clk 00:31:19]} {[%emt 00:04:05]} 26. Rde1
{[%clk 00:15:58]} {[%emt 00:00:13]} Rde8 {[%clk 00:27:25]} {[%emt 00:04:23]} 27.
Rd1 {[%clk 00:16:13]} {[%emt 00:00:16]} 1/2-1/2